[Event "*** SCC Grand Prix: Titled Tuesday Blitz"]
[Site "Chess.com"]
[Date "2020.07.21"]
[Round "1"]
[White "ENajer77"]
[Black "Parkas"]
[Result "1-0"]
[WhiteElo "2688"]
[BlackElo "2343"]
[TimeControl "180+1"]
[EndTime "10:08:09 PDT"]
[Termination "ENajer77 won on time"]

1. d4 {[%clk 0:03:00.9]} 1... g6 {[%clk 0:03:00.2]} 2. e4 {[%clk 0:02:59.8]}
2... Bg7 {[%clk 0:03:00.6]} 3. Nc3 {[%clk 0:03:00.5]} 3... d6 {[%clk 0:03:01]}
4. Be3 {[%clk 0:03:01.1]} 4... a6 {[%clk 0:02:58.9]} 5. Nf3 {[%clk 0:02:59.4]}
5... b5 {[%clk 0:02:57.9]} 6. Bd3 {[%clk 0:02:57.7]} 6... Nd7 {[%clk 0:02:56.3]}
7. e5 {[%clk 0:02:54.8]} 7... Bb7 {[%clk 0:02:37.8]} 8. e6 {[%clk 0:02:54.1]}
8... fxe6 {[%clk 0:02:36.3]} 9. Ng5 {[%clk 0:02:54.4]} 9... Nf8 {[%clk
0:02:33.1]} 10. O-O {[%clk 0:02:52.6]} 10... Nf6 {[%clk 0:02:27.7]} 11. Qe2
{[%clk 0:02:52.4]} 11... Qd7 {[%clk 0:02:01.2]} 12. f3 {[%clk 0:02:47.9]} 12...
h6 {[%clk 0:01:53.8]} 13. Nh3 {[%clk 0:02:46.6]} 13... g5 {[%clk 0:01:52]} 14.
Rae1 {[%clk 0:02:40.5]} 14... Rc8 {[%clk 0:01:04.2]} 15. Kh1 {[%clk 0:02:30.1]}
15... c5 {[%clk 0:00:36.5]} 16. dxc5 {[%clk 0:02:19.9]} 16... dxc5 {[%clk
0:00:36.8]} 17. Rd1 {[%clk 0:02:19.7]} 17... Qc7 {[%clk 0:00:27.4]} 18. Qf2
{[%clk 0:02:02]} 18... Nd5 {[%clk 0:00:24.8]} 19. Bd2 {[%clk 0:01:56.7]} 19...
Nxc3 {[%clk 0:00:19.1]} 20. Bxc3 {[%clk 0:01:55.1]} 20... Bxc3 {[%clk
0:00:19.3]} 21. bxc3 {[%clk 0:01:55.8]} 21... Qe5 {[%clk 0:00:18.1]} 22. f4
{[%clk 0:01:50.6]} 22... Qf6 {[%clk 0:00:13.2]} 23. Qg3 {[%clk 0:01:45.1]} 23...
g4 {[%clk 0:00:12.2]} 24. Qxg4 {[%clk 0:01:44.4]} 24... c4 {[%clk 0:00:12.6]}
25. Be2 {[%clk 0:01:37]} 25... Qf7 {[%clk 0:00:13.1]} 26. Bf3 {[%clk 0:01:32.5]}
26... Rg8 {[%clk 0:00:12.7]} 27. Qh4 {[%clk 0:01:27.3]} 27... Bxf3 {[%clk
0:00:12.8]} 28. Rxf3 {[%clk 0:01:26.6]} 28... Qf6 {[%clk 0:00:12.5]} 29. Qh5+
{[%clk 0:01:18.2]} 29... Qg6 {[%clk 0:00:12.8]} 30. Qxg6+ {[%clk 0:01:13.3]}
30... Nxg6 {[%clk 0:00:13.7]} 31. Re1 {[%clk 0:01:13.2]} 31... Kf7 {[%clk
0:00:13.7]} 32. g3 {[%clk 0:01:05.4]} 32... Rgd8 {[%clk 0:00:13.5]} 33. Re2
{[%clk 0:00:59.9]} 33... Rd6 {[%clk 0:00:13.4]} 34. Nf2 {[%clk 0:00:59.3]} 34...
Rcd8 {[%clk 0:00:13]} 35. Ng4 {[%clk 0:00:57.1]} 35... Rd1+ {[%clk 0:00:10.1]}
36. Kg2 {[%clk 0:00:56.5]} 36... R8d2 {[%clk 0:00:10.3]} 37. Rxd2 {[%clk
0:00:53.1]} 37... Rxd2+ {[%clk 0:00:10.3]} 38. Rf2 {[%clk 0:00:53.7]} 38... Rd1
{[%clk 0:00:05.7]} 39. Nxh6+ {[%clk 0:00:51.2]} 39... Kg7 {[%clk 0:00:06.2]} 40.
Ng4 {[%clk 0:00:51.8]} 40... Ra1 {[%clk 0:00:06.2]} 41. h4 {[%clk 0:00:44.5]}
41... Rxa2 {[%clk 0:00:05.9]} 42. h5 {[%clk 0:00:45]} 42... Nf8 {[%clk
0:00:05.6]} 43. Ne5 {[%clk 0:00:45.3]} 43... Rb2 {[%clk 0:00:02.7]} 44. Nc6
{[%clk 0:00:40.6]} 44... Ra2 {[%clk 0:00:01.5]} 45. Nxe7 {[%clk 0:00:33.2]}
45... a5 {[%clk 0:00:01.9]} 46. f5 {[%clk 0:00:33.3]} 46... exf5 {[%clk
0:00:01.8]} 47. Nxf5+ {[%clk 0:00:33.2]} 47... Kh7 {[%clk 0:00:01.4]} 48. Nd6
{[%clk 0:00:32.1]} 48... Ne6 {[%clk 0:00:01.9]} 49. Nxb5 {[%clk 0:00:31.3]}
49... Rb2 {[%clk 0:00:02.5]} 50. Nd4 {[%clk 0:00:28.1]} 50... Nxd4 {[%clk
0:00:01.3]} 51. cxd4 {[%clk 0:00:27.5]} 51... a4 {[%clk 0:00:02]} 52. Kh3 {[%clk
0:00:07.8]} 52... a3 {[%clk 0:00:01.7]} 53. Rf6 {[%clk 0:00:06.2]} 1-0

[Event "*** SCC Grand Prix: Titled Tuesday Blitz"]
[Site "Chess.com"]
[Date "2020.07.21"]
[Round "1"]
[White "MF1966Idrisov"]
[Black "theblitzchamp"]
[Result "1-0"]
[WhiteElo "2349"]
[BlackElo "2657"]
[TimeControl "180+1"]
[EndTime "10:08:10 PDT"]
[Termination "MF1966Idrisov won by resignation"]

1. Nf3 {[%clk 0:03:00.8]} 1... d5 {[%clk 0:02:58.9]} 2. b3 {[%clk 0:03:00.9]}
2... Nf6 {[%clk 0:02:58.2]} 3. Bb2 {[%clk 0:03:00.7]} 3... c6 {[%clk 0:02:58.1]}
4. e3 {[%clk 0:03:01.1]} 4... Bf5 {[%clk 0:02:56.9]} 5. d4 {[%clk 0:03:01.7]}
5... e6 {[%clk 0:02:56.1]} 6. Bd3 {[%clk 0:03:01.3]} 6... Nbd7 {[%clk
0:02:50.1]} 7. Bxf5 {[%clk 0:02:58.3]} 7... exf5 {[%clk 0:02:51]} 8. O-O {[%clk
0:02:57.4]} 8... Bd6 {[%clk 0:02:50.5]} 9. c4 {[%clk 0:02:56.9]} 9... O-O {[%clk
0:02:49]} 10. Nc3 {[%clk 0:02:56.4]} 10... dxc4 {[%clk 0:02:38.2]} 11. bxc4
{[%clk 0:02:55.3]} 11... Ne4 {[%clk 0:02:38.7]} 12. Qc2 {[%clk 0:02:37.5]} 12...
Re8 {[%clk 0:02:37.4]} 13. Rad1 {[%clk 0:02:29.1]} 13... Qf6 {[%clk 0:02:03.1]}
14. Ne2 {[%clk 0:02:23]} 14... Qh6 {[%clk 0:02:00.1]} 15. Ng3 {[%clk 0:02:15.4]}
15... Bxg3 {[%clk 0:01:44.4]} 16. hxg3 {[%clk 0:02:12.9]} 16... Ndf6 {[%clk
0:01:44.2]} 17. d5 {[%clk 0:01:54.5]} 17... cxd5 {[%clk 0:01:43.4]} 18. Bxf6
{[%clk 0:01:42.4]} 18... Qxf6 {[%clk 0:01:34.5]} 19. cxd5 {[%clk 0:01:41.7]}
19... Rac8 {[%clk 0:01:34.3]} 20. Qb3 {[%clk 0:01:38.9]} 20... b6 {[%clk
0:01:34.4]} 21. Qa3 {[%clk 0:01:35.8]} 21... Rc7 {[%clk 0:01:29.6]} 22. Nd4
{[%clk 0:01:27.8]} 22... Nc3 {[%clk 0:01:11.6]} 23. Rd2 {[%clk 0:01:25.5]} 23...
Nxd5 {[%clk 0:01:06.2]} 24. Nb5 {[%clk 0:01:18.1]} 24... Rd7 {[%clk 0:00:47.9]}
25. Rfd1 {[%clk 0:01:14.1]} 25... Red8 {[%clk 0:00:48.2]} 26. Nxa7 {[%clk
0:01:07.9]} 26... Qe6 {[%clk 0:00:20.8]} 27. Nb5 {[%clk 0:01:01.3]} 27... h6
{[%clk 0:00:13.3]} 28. Nd4 {[%clk 0:00:59]} 28... Qf6 {[%clk 0:00:13.8]} 29. Qb3
{[%clk 0:00:46.5]} 29... f4 {[%clk 0:00:13.6]} 30. exf4 {[%clk 0:00:28.5]} 30...
Nxf4 {[%clk 0:00:12]} 31. gxf4 {[%clk 0:00:24.4]} 31... Rxd4 {[%clk 0:00:12.3]}
32. Rxd4 {[%clk 0:00:23.7]} 32... Rxd4 {[%clk 0:00:13.2]} 33. Rxd4 {[%clk
0:00:23.1]} 33... Qxd4 {[%clk 0:00:14.1]} 34. g3 {[%clk 0:00:22.7]} 34... h5
{[%clk 0:00:14.5]} 35. Kg2 {[%clk 0:00:21.3]} 35... g6 {[%clk 0:00:15]} 36. Qf3
{[%clk 0:00:18.9]} 36... Qc5 {[%clk 0:00:14.6]} 37. Qa8+ {[%clk 0:00:18.2]}
37... Kg7 {[%clk 0:00:14.4]} 38. a4 {[%clk 0:00:17.6]} 38... h4 {[%clk
0:00:12.4]} 39. gxh4 {[%clk 0:00:16.9]} 39... Qd4 {[%clk 0:00:12.4]} 40. Kg3
{[%clk 0:00:16.9]} 40... Qc3+ {[%clk 0:00:12.4]} 41. Qf3 {[%clk 0:00:15.2]}
41... Qb4 {[%clk 0:00:12.7]} 42. Qc6 {[%clk 0:00:14.2]} 42... Qa3+ {[%clk
0:00:13.1]} 43. Kg2 {[%clk 0:00:13.1]} 43... Qb4 {[%clk 0:00:13.5]} 44. Kg3
{[%clk 0:00:12.1]} 44... Qd4 {[%clk 0:00:13.9]} 45. Qb5 {[%clk 0:00:10.5]} 45...
Qc3+ {[%clk 0:00:13.2]} 46. Kg2 {[%clk 0:00:10.3]} 46... Qf6 {[%clk 0:00:13.7]}
47. Qe5 {[%clk 0:00:08.9]} 47... Qxe5 {[%clk 0:00:12.3]} 48. fxe5 {[%clk
0:00:08.5]} 48... Kf8 {[%clk 0:00:12.9]} 49. f4 {[%clk 0:00:08.2]} 49... Ke7
{[%clk 0:00:13.8]} 50. Kf3 {[%clk 0:00:08.3]} 50... Ke6 {[%clk 0:00:14.6]} 51.
Ke4 {[%clk 0:00:08.3]} 51... Ke7 {[%clk 0:00:13]} 52. f5 {[%clk 0:00:08.5]}
52... Kd7 {[%clk 0:00:12.5]} 53. fxg6 {[%clk 0:00:07.8]} 53... fxg6 {[%clk
0:00:13.4]} 54. Kf4 {[%clk 0:00:08.1]} 54... Ke7 {[%clk 0:00:14.3]} 55. Kg5
{[%clk 0:00:08.1]} 55... b5 {[%clk 0:00:15.2]} 56. axb5 {[%clk 0:00:05.6]} 56...
Ke6 {[%clk 0:00:15.8]} 57. Kxg6 {[%clk 0:00:04.8]} 57... Kxe5 {[%clk 0:00:16.7]}
58. h5 {[%clk 0:00:04.9]} 58... Kd6 {[%clk 0:00:17.6]} 59. h6 {[%clk 0:00:05.6]}
59... Kc7 {[%clk 0:00:18.5]} 60. h7 {[%clk 0:00:05]} 60... Kb6 {[%clk
0:00:19.4]} 1-0

[Event "*** SCC Grand Prix: Titled Tuesday Blitz"]
[Site "Chess.com"]
[Date "2020.07.21"]
[Round "1"]
[White "Vuk2000"]
[Black "Snegokhod"]
[Result "1/2-1/2"]
[WhiteElo "2607"]
[BlackElo "2281"]
[TimeControl "180+1"]
[EndTime "10:08:10 PDT"]
[Termination "Game drawn - insufficient material"]

1. d4 {[%clk 0:03:00]} 1... Nf6 {[%clk 0:02:59.6]} 2. Bg5 {[%clk 0:02:59.5]}
2... e6 {[%clk 0:02:56.7]} 3. e4 {[%clk 0:02:59.3]} 3... Be7 {[%clk 0:02:55.4]}
4. e5 {[%clk 0:02:54.1]} 4... Ng8 {[%clk 0:02:49.4]} 5. Be3 {[%clk 0:02:49]}
5... d6 {[%clk 0:02:49.1]} 6. f4 {[%clk 0:02:47.4]} 6... dxe5 {[%clk 0:02:48.9]}
7. fxe5 {[%clk 0:02:48.3]} 7... Nc6 {[%clk 0:02:47.5]} 8. Nf3 {[%clk 0:02:48]}
8... g5 {[%clk 0:02:40.7]} 9. h3 {[%clk 0:02:36.6]} 9... Nh6 {[%clk 0:02:40.8]}
10. Bd3 {[%clk 0:02:34.6]} 10... Nf5 {[%clk 0:02:38.3]} 11. Qd2 {[%clk
0:02:28.6]} 11... Ng3 {[%clk 0:02:35.5]} 12. Rg1 {[%clk 0:02:25.1]} 12... Rg8
{[%clk 0:02:35.4]} 13. Bxh7 {[%clk 0:02:23]} 13... Rg7 {[%clk 0:02:35]} 14. Bd3
{[%clk 0:02:21.2]} 14... g4 {[%clk 0:02:35]} 15. hxg4 {[%clk 0:02:17.6]} 15...
Rxg4 {[%clk 0:02:35.9]} 16. Nc3 {[%clk 0:02:18.1]} 16... Nb4 {[%clk 0:02:33.6]}
17. O-O-O {[%clk 0:02:08.5]} 17... a5 {[%clk 0:02:29.8]} 18. Kb1 {[%clk
0:02:06.4]} 18... b6 {[%clk 0:02:28]} 19. Bb5+ {[%clk 0:02:03.1]} 19... Bd7
{[%clk 0:02:26.1]} 20. Bxd7+ {[%clk 0:01:42.4]} 20... Qxd7 {[%clk 0:02:27]} 21.
Bf2 {[%clk 0:01:42.9]} 21... Ne4 {[%clk 0:02:24.5]} 22. Nxe4 {[%clk 0:01:42.4]}
22... Rxe4 {[%clk 0:02:25.4]} 23. c3 {[%clk 0:01:32.7]} 23... Nd5 {[%clk
0:02:21.3]} 24. Qd3 {[%clk 0:01:29.6]} 24... Rg4 {[%clk 0:02:17.4]} 25. g3
{[%clk 0:01:14.7]} 25... Qc6 {[%clk 0:02:15.8]} 26. Nd2 {[%clk 0:01:10.2]} 26...
O-O-O {[%clk 0:02:15.3]} 27. Qf3 {[%clk 0:01:08.1]} 27... Rdg8 {[%clk 0:02:13]}
28. c4 {[%clk 0:00:56.1]} 28... Nb4 {[%clk 0:02:11.2]} 29. Qxc6 {[%clk
0:00:56.2]} 29... Nxc6 {[%clk 0:02:12.1]} 30. Nf3 {[%clk 0:00:56.7]} 30... f6
{[%clk 0:02:07.9]} 31. exf6 {[%clk 0:00:49]} 31... Bxf6 {[%clk 0:02:08.8]} 32.
Rge1 {[%clk 0:00:49.5]} 32... Rd8 {[%clk 0:02:05.8]} 33. Rxe6 {[%clk 0:00:47.7]}
33... Bxd4 {[%clk 0:02:06.1]} 34. Be1 {[%clk 0:00:31.3]} 34... Kb7 {[%clk
0:01:59.3]} 35. Re2 {[%clk 0:00:20.3]} 35... Bc5 {[%clk 0:01:54.1]} 36. Rxd8
{[%clk 0:00:19.4]} 36... Nxd8 {[%clk 0:01:55]} 37. Ne5 {[%clk 0:00:19.9]} 37...
Rg5 {[%clk 0:01:51]} 38. Nf3 {[%clk 0:00:19.2]} 38... Rg4 {[%clk 0:01:50.1]} 39.
b3 {[%clk 0:00:19.7]} 39... a4 {[%clk 0:01:48.4]} 40. Kc2 {[%clk 0:00:19.7]}
40... axb3+ {[%clk 0:01:48]} 41. axb3 {[%clk 0:00:20.6]} 41... Nc6 {[%clk
0:01:48.9]} 42. Ne5 {[%clk 0:00:20]} 42... Nd4+ {[%clk 0:01:47.3]} 43. Kd3
{[%clk 0:00:16.1]} 43... Rg5 {[%clk 0:01:44.7]} 44. Re4 {[%clk 0:00:15.9]} 44...
Nxb3 {[%clk 0:01:44.4]} 45. Nf3 {[%clk 0:00:16.4]} 45... Rg8 {[%clk 0:01:43.4]}
46. Kc2 {[%clk 0:00:15.4]} 46... Rf8 {[%clk 0:01:36.6]} 47. Kxb3 {[%clk
0:00:15.4]} 47... Rxf3+ {[%clk 0:01:36.3]} 48. Kc2 {[%clk 0:00:16]} 48... Bf2
{[%clk 0:01:29.8]} 49. Bxf2 {[%clk 0:00:11.2]} 49... Rxf2+ {[%clk 0:01:30.7]}
50. Kd3 {[%clk 0:00:11.8]} 50... Rg2 {[%clk 0:01:31.6]} 51. g4 {[%clk
0:00:11.9]} 51... Kc6 {[%clk 0:01:30.8]} 52. Rd4 {[%clk 0:00:05.4]} 52... Rg3+
{[%clk 0:01:27.3]} 53. Ke2 {[%clk 0:00:05.3]} 53... Kc5 {[%clk 0:01:27.7]} 54.
Re4 {[%clk 0:00:05.5]} 54... Rc3 {[%clk 0:01:21.5]} 55. Re7 {[%clk 0:00:05.3]}
55... c6 {[%clk 0:01:20]} 56. g5 {[%clk 0:00:03.7]} 56... Rxc4 {[%clk
0:01:19.3]} 57. Kf3 {[%clk 0:00:04.3]} 57... Rc1 {[%clk 0:01:18.7]} 58. g6
{[%clk 0:00:03.3]} 58... Rg1 {[%clk 0:01:18.9]} 59. Re6 {[%clk 0:00:03.7]} 59...
b5 {[%clk 0:01:18.9]} 60. Kf4 {[%clk 0:00:04.3]} 60... b4 {[%clk 0:01:19.1]} 61.
Re5+ {[%clk 0:00:04.9]} 61... Kc4 {[%clk 0:01:18.9]} 62. Rg5 {[%clk 0:00:05.1]}
62... Rf1+ {[%clk 0:01:18.4]} 63. Ke5 {[%clk 0:00:05]} 63... Rf8 {[%clk
0:01:17.7]} 64. g7 {[%clk 0:00:05]} 64... Rg8 {[%clk 0:01:18.2]} 65. Kd6 {[%clk
0:00:05]} 65... b3 {[%clk 0:01:17.1]} 66. Rg4+ {[%clk 0:00:04]} 66... Kc3 {[%clk
0:01:15.5]} 67. Rg3+ {[%clk 0:00:04.5]} 67... Kb4 {[%clk 0:01:15.8]} 68. Rg2
{[%clk 0:00:02.3]} 68... Ka3 {[%clk 0:01:13.7]} 69. Kc5 {[%clk 0:00:02.5]} 69...
b2 {[%clk 0:01:13.6]} 70. Rg1 {[%clk 0:00:02.7]} 70... Rxg7 {[%clk 0:01:12.7]}
71. Rxg7 {[%clk 0:00:02.6]} 71... b1=Q {[%clk 0:01:12.8]} 72. Ra7+ {[%clk
0:00:03.5]} 72... Kb2 {[%clk 0:01:08.8]} 73. Rb7+ {[%clk 0:00:04.4]} 73... Kc2
{[%clk 0:01:09.4]} 74. Rxb1 {[%clk 0:00:05.3]} 74... Kxb1 {[%clk 0:01:10.3]} 75.
Kxc6 {[%clk 0:00:06]} 1/2-1/2

[Event "*** SCC Grand Prix: Titled Tuesday Blitz"]
[Site "Chess.com"]
[Date "2020.07.21"]
[Round "1"]
[White "kingmonkey2006"]
[Black "ItsCheckM8Mate"]
[Result "1-0"]
[WhiteElo "2627"]
[BlackElo "2286"]
[TimeControl "180+1"]
[EndTime "10:08:11 PDT"]
[Termination "kingmonkey2006 won on time"]

1. e4 {[%clk 0:02:57.2]} 1... e5 {[%clk 0:01:56.8]} 2. Nf3 {[%clk 0:02:54.2]}
2... Nc6 {[%clk 0:01:54.1]} 3. Bb5 {[%clk 0:02:54.6]} 3... a6 {[%clk 0:01:52.5]}
4. Ba4 {[%clk 0:02:54.9]} 4... Nf6 {[%clk 0:01:51.8]} 5. O-O {[%clk 0:02:55]}
5... Nxe4 {[%clk 0:01:51.4]} 6. d4 {[%clk 0:02:54]} 6... b5 {[%clk 0:01:50.8]}
7. Bb3 {[%clk 0:02:54.2]} 7... d5 {[%clk 0:01:50.5]} 8. dxe5 {[%clk 0:02:54.7]}
8... Be6 {[%clk 0:01:50]} 9. c3 {[%clk 0:02:54.4]} 9... Bc5 {[%clk 0:01:43]} 10.
Nbd2 {[%clk 0:02:53.9]} 10... O-O {[%clk 0:01:42.6]} 11. Bc2 {[%clk 0:02:51.8]}
11... Bf5 {[%clk 0:01:42.4]} 12. Nb3 {[%clk 0:02:48]} 12... Bg6 {[%clk
0:01:40.8]} 13. Nxc5 {[%clk 0:02:40.5]} 13... Nxc5 {[%clk 0:01:40.2]} 14. Be3
{[%clk 0:02:38.8]} 14... Ne6 {[%clk 0:01:31.3]} 15. Qd2 {[%clk 0:02:20.9]} 15...
Bh5 {[%clk 0:01:21.5]} 16. Qd3 {[%clk 0:02:13.7]} 16... Bg6 {[%clk 0:01:18.5]}
17. Qe2 {[%clk 0:01:54.2]} 17... Be4 {[%clk 0:01:04.8]} 18. Bxe4 {[%clk
0:01:42.6]} 18... dxe4 {[%clk 0:01:04.3]} 19. Nd2 {[%clk 0:01:43.5]} 19... Nxe5
{[%clk 0:01:03]} 20. Nxe4 {[%clk 0:01:43]} 20... Qd3 {[%clk 0:01:02.3]} 21. Qxd3
{[%clk 0:01:35.7]} 21... Nxd3 {[%clk 0:01:02.2]} 22. b3 {[%clk 0:01:33.5]} 22...
f5 {[%clk 0:00:57.9]} 23. Ng5 {[%clk 0:01:31.2]} 23... Nxg5 {[%clk 0:00:45.1]}
24. Bxg5 {[%clk 0:01:32.1]} 24... h6 {[%clk 0:00:41.7]} 25. Bd2 {[%clk
0:01:27.3]} 25... Rad8 {[%clk 0:00:40.1]} 26. f3 {[%clk 0:01:16.1]} 26... Rfe8
{[%clk 0:00:39.5]} 27. Rfd1 {[%clk 0:00:57.8]} 27... Nb2 {[%clk 0:00:38.9]} 28.
Re1 {[%clk 0:00:57.7]} 28... Nd3 {[%clk 0:00:30.5]} 29. Rxe8+ {[%clk 0:00:56.4]}
29... Rxe8 {[%clk 0:00:31.4]} 30. Kf1 {[%clk 0:00:57]} 30... Kf7 {[%clk
0:00:30.1]} 31. a4 {[%clk 0:00:53.8]} 31... Nc5 {[%clk 0:00:21.2]} 32. Ra3
{[%clk 0:00:53.2]} 32... bxa4 {[%clk 0:00:19.3]} 33. b4 {[%clk 0:00:53.6]} 33...
Nb3 {[%clk 0:00:18.2]} 34. Be1 {[%clk 0:00:53.8]} 34... Nc1 {[%clk 0:00:17.2]}
35. Rxa4 {[%clk 0:00:52.2]} 35... Nd3 {[%clk 0:00:16.9]} 36. Bd2 {[%clk
0:00:52.6]} 36... Re6 {[%clk 0:00:17]} 37. Ra2 {[%clk 0:00:45.7]} 37... Kf6
{[%clk 0:00:14.9]} 38. c4 {[%clk 0:00:45.5]} 38... f4 {[%clk 0:00:14.2]} 39.
Bc3+ {[%clk 0:00:44.2]} 39... Kf5 {[%clk 0:00:14]} 40. Rd2 {[%clk 0:00:45]}
40... Ne5 {[%clk 0:00:10.6]} 41. c5 {[%clk 0:00:42]} 41... Nc4 {[%clk
0:00:09.5]} 42. Rd5+ {[%clk 0:00:41.3]} 42... Kg6 {[%clk 0:00:09.8]} 43. Rd7
{[%clk 0:00:38.4]} 43... Re3 {[%clk 0:00:06.9]} 44. Bxg7 {[%clk 0:00:32.7]}
44... Rb3 {[%clk 0:00:03.5]} 45. Rxc7 {[%clk 0:00:29.4]} 45... Rxb4 {[%clk
0:00:03.9]} 46. Bf8 {[%clk 0:00:27.5]} 46... Ne3+ {[%clk 0:00:04]} 47. Ke2
{[%clk 0:00:26.1]} 47... Rb3 {[%clk 0:00:04.3]} 48. Rc6+ {[%clk 0:00:25.8]}
48... Kf5 {[%clk 0:00:04.2]} 49. Bxh6 {[%clk 0:00:25]} 49... Rc3 {[%clk
0:00:03.6]} 50. g4+ {[%clk 0:00:24.1]} 50... fxg3 {[%clk 0:00:03.1]} 51. Bxe3
{[%clk 0:00:19.8]} 51... g2 {[%clk 0:00:02.9]} 52. Bg1 {[%clk 0:00:16]} 52...
Rc2+ {[%clk 0:00:02.2]} 53. Kd1 {[%clk 0:00:15.4]} 53... Ra2 {[%clk 0:00:02]}
54. Ke1 {[%clk 0:00:15.7]} 1-0

[Event "*** SCC Grand Prix: Titled Tuesday Blitz"]
[Site "Chess.com"]
[Date "2020.07.21"]
[Round "1"]
[White "chesstrainer2042"]
[Black "IMHansNiemann"]
[Result "1/2-1/2"]
[WhiteElo "2461"]
[BlackElo "2961"]
[TimeControl "180+1"]
[EndTime "10:08:15 PDT"]
[Termination "Game drawn by repetition"]

1. e4 {[%clk 0:02:59]} 1... g6 {[%clk 0:02:53.2]} 2. d4 {[%clk 0:02:58]} 2...
Bg7 {[%clk 0:02:50.7]} 3. Nc3 {[%clk 0:02:58.5]} 3... c6 {[%clk 0:02:49.6]} 4.
Nf3 {[%clk 0:02:56.2]} 4... d5 {[%clk 0:02:48.5]} 5. h3 {[%clk 0:02:56.4]} 5...
dxe4 {[%clk 0:02:48.4]} 6. Nxe4 {[%clk 0:02:55.9]} 6... Nf6 {[%clk 0:02:49]} 7.
Nxf6+ {[%clk 0:02:54.6]} 7... exf6 {[%clk 0:02:49.9]} 8. Bc4 {[%clk 0:02:51.6]}
8... O-O {[%clk 0:02:49.7]} 9. O-O {[%clk 0:02:51.1]} 9... b5 {[%clk 0:02:48.8]}
10. Bb3 {[%clk 0:02:50.7]} 10... Nd7 {[%clk 0:02:49.2]} 11. c3 {[%clk 0:02:46]}
11... Nb6 {[%clk 0:02:48.3]} 12. Re1 {[%clk 0:02:41.2]} 12... Nd5 {[%clk
0:02:43.7]} 13. Bd2 {[%clk 0:02:40.1]} 13... Be6 {[%clk 0:02:43.4]} 14. Qc1
{[%clk 0:02:39.7]} 14... Re8 {[%clk 0:02:43.2]} 15. Bh6 {[%clk 0:02:38.6]} 15...
Qd6 {[%clk 0:02:41.8]} 16. Bxg7 {[%clk 0:02:36.1]} 16... Kxg7 {[%clk 0:02:42.7]}
17. Qd2 {[%clk 0:02:36.1]} 17... Re7 {[%clk 0:02:33.2]} 18. Re4 {[%clk
0:02:34.4]} 18... f5 {[%clk 0:02:31.8]} 19. Re5 {[%clk 0:02:27.5]} 19... f6
{[%clk 0:02:30.2]} 20. Re2 {[%clk 0:02:20.1]} 20... Nf4 {[%clk 0:02:24.2]} 21.
Re3 {[%clk 0:02:20.3]} 21... Rae8 {[%clk 0:02:17.7]} 22. Rae1 {[%clk 0:02:17.8]}
22... g5 {[%clk 0:02:17.5]} 23. Nh2 {[%clk 0:01:47.9]} 23... h5 {[%clk
0:02:09.7]} 24. Nf1 {[%clk 0:01:47.1]} 24... Bd7 {[%clk 0:02:05.4]} 25. Rxe7+
{[%clk 0:01:40.5]} 25... Rxe7 {[%clk 0:02:05.5]} 26. Rxe7+ {[%clk 0:01:39.3]}
26... Qxe7 {[%clk 0:02:05.4]} 27. Ne3 {[%clk 0:01:39.5]} 27... Be6 {[%clk
0:01:56.6]} 28. Bc2 {[%clk 0:01:35.5]} 28... Qd7 {[%clk 0:01:54.8]} 29. a3
{[%clk 0:01:28.8]} 29... h4 {[%clk 0:01:55]} 30. Qd1 {[%clk 0:01:27.1]} 30...
Nd5 {[%clk 0:01:47.1]} 31. Qf3 {[%clk 0:01:24.6]} 31... Ne7 {[%clk 0:01:41.8]}
32. g3 {[%clk 0:01:22.4]} 32... hxg3 {[%clk 0:01:37.7]} 33. fxg3 {[%clk
0:01:22.4]} 33... a5 {[%clk 0:01:34.5]} 34. h4 {[%clk 0:01:21.8]} 34... g4
{[%clk 0:01:12.8]} 35. Qf4 {[%clk 0:01:19]} 35... b4 {[%clk 0:01:08.5]} 36. h5
{[%clk 0:01:17.5]} 36... bxc3 {[%clk 0:01:04.4]} 37. h6+ {[%clk 0:01:07.8]}
37... Kh8 {[%clk 0:00:55.6]} 38. bxc3 {[%clk 0:01:03.8]} 38... Ng6 {[%clk
0:00:54.2]} 39. Qb8+ {[%clk 0:01:01.9]} 39... Kh7 {[%clk 0:00:54.1]} 40. Qb1
{[%clk 0:00:39.8]} 40... Ne7 {[%clk 0:00:48]} 41. Nxg4 {[%clk 0:00:38.8]} 41...
Qd6 {[%clk 0:00:43.8]} 42. Kh2 {[%clk 0:00:34.2]} 42... Kg6 {[%clk 0:00:38]} 43.
Qc1 {[%clk 0:00:26.8]} 43... Ng8 {[%clk 0:00:29.9]} 44. Qe3 {[%clk 0:00:22.4]}
44... Bd7 {[%clk 0:00:22.4]} 45. c4 {[%clk 0:00:18.7]} 45... Qb8 {[%clk
0:00:15.2]} 46. d5 {[%clk 0:00:11.1]} 46... cxd5 {[%clk 0:00:14.9]} 47. cxd5
{[%clk 0:00:11]} 47... Qb2 {[%clk 0:00:14.8]} 48. Qf2 {[%clk 0:00:10.8]} 48...
Qc3 {[%clk 0:00:12.3]} 49. h7 {[%clk 0:00:09.7]} 49... Kxh7 {[%clk 0:00:11.2]}
50. Bxf5+ {[%clk 0:00:09.6]} 50... Bxf5 {[%clk 0:00:11.9]} 51. Qxf5+ {[%clk
0:00:09.6]} 51... Kg7 {[%clk 0:00:12.6]} 52. Qd7+ {[%clk 0:00:09.5]} 52... Kg6
{[%clk 0:00:12.9]} 53. Qe8+ {[%clk 0:00:09.7]} 53... Kg7 {[%clk 0:00:12.5]} 54.
Qd7+ {[%clk 0:00:09.8]} 54... Kg6 {[%clk 0:00:09.2]} 55. Qe8+ {[%clk 0:00:09.7]}
55... Kg7 {[%clk 0:00:08.4]} 56. Qd7+ {[%clk 0:00:09.7]} 1/2-1/2